fUSD/lending_fUSD_20240319
["ID","MTS","AMOUNT","RATE_DAILY","PERIOD"]
[319509195,1710814238290,-2516.48927252,0.00019889,2]
[319509196,1710814238299,-2516.48927252,0.00019889,2]
[319509197,1710814238310,-2516.48927252,0.00019889,2]
[319509198,1710814238320,-2516.48927252,0.00019889,2]
[319509199,1710814238329,-2516.48927252,0.00019889,2]
[319509200,1710814238339,-2516.48927252,0.00019889,2]
[319509201,1710814238349,-2516.48927252,0.00019889,2]
[319509202,1710814238359,-2516.48927252,0.00019889,2]
[319509203,1710814238369,-2516.48927252,0.00019889,2]
[319509204,1710814238379,-352421.70688415,0.000199,5]
[319509205,1710814238389,-200.0,0.000199,7]
[319509206,1710814238400,-165.7118493,0.000199,2]
[319509207,1710814238414,-20628.96022677,0.00019942,2]
[319509208,1710814238424,-349.83,0.00019969,2]
[319509210,1710814238440,-183.43398088,0.0002,2]
[319509212,1710814238451,-14331.47667584,0.0002,2]
[319509214,1710814238461,-277.58082116,0.0002,2]
[319509216,1710814238471,-5745.33934359,0.0002,2]
[319509218,1710814238481,-189.13,0.0002,2]
[319509220,1710814238491,-5000.0,0.0002,2]
[319509223,1710814238501,-514.89043912,0.0002,2]
[319509225,1710814238511,-349.83,0.00020043,2]
[319509227,1710814238520,-349.83,0.00020116,2]
[319509229,1710814238530,-349.83,0.0002019,2]
[319509232,1710814238540,-349.83,0.00020263,2]
[319509235,1710814238549,-349.83,0.00020337,2]
[319509238,1710814238558,-166.87,0.00020349,2]
[319509240,1710814238568,-349.83,0.0002041,2]
[319509242,1710814238578,-349.83,0.00020484,2]
[319509244,1710814238587,-349.83,0.00020557,2]
[319509246,1710814238597,-349.83,0.00020631,2]
[319509248,1710814238606,-194.33,0.00020666,2]
[319509250,1710814238616,-349.83,0.00020705,2]
[319509252,1710814238625,-349.83,0.00020778,2]
[319509254,1710814238635,-349.83,0.00020852,2]
[319509256,1710814238645,-24687.87075637,0.000209,2]
[319509258,1710814238655,-500.0,0.000209,7]
[319509260,1710814238665,-349.83,0.00020925,2]
[319509262,1710814238675,-219.83,0.0002099,2]
[319509265,1710814238693,-349.83,0.00020999,2]
[319509267,1710814238704,-158402.55063437,0.00021,2]
[319509269,1710814238714,-3733.44896711,0.00021,2]
[319509271,1710814238724,-500.99906379,0.00021,2]
[319509273,1710814238734,-1000.0,0.00021037,2]
[319509275,1710814238744,-349.83,0.00021072,2]
[319509277,1710814238754,-2473.09,0.00021096,2]
[319509279,1710814238765,-637.77,0.00021096,2]
[319509281,1710814238775,-349.83,0.00021146,2]
[319509283,1710814238787,-349.83,0.0002122,2]
[319509285,1710814238799,-349.83,0.00021293,2]
[319509287,1710814238809,-29119.05341887,0.000213,7]
[319509289,1710814238818,-349.83,0.00021367,2]
[319509291,1710814238828,-219.83,0.00021506,2]
[319509292,1710814238838,-1210.0,0.00021516,2]
[319509293,1710814238848,-2135.18659071,0.00021516,2]
[319509294,1710814238859,-336.84400389,0.00021516,2]
[319509295,1710814238869,-18811.93331837,0.00021516,30]
[319509296,1710814238879,-353.40454851,0.00021516,10]
[319509297,1710814238889,-10010.65585086,0.00021516,2]
[319509298,1710814238898,-1396.35348141,0.00021516,2]
[319509299,1710814238908,-500.0,0.00021516,10]
[319509300,1710814238918,-300.0,0.00021516,2]
[319509301,1710814238927,-941.72422544,0.00021516,4]
[319509302,1710814238943,-85987.33992536,0.00021516,7]
[319509303,1710814238953,-1112.50671996,0.00021516,10]
[319509304,1710814238963,-650.90024413,0.00021516,2]
[319509305,1710814238975,-736.55154077,0.00021516,10]
[319509306,1710814238985,-1451.83645239,0.00021516,120]
[319509307,1710814238995,-155.392626,0.00021516,30]
[319509308,1710814239005,-598.84,0.00021704,2]
[319509309,1710814239015,-700.0,0.000219,2]
[319509310,1710814239026,-314.15,0.00021918,2]
[319509311,1710814239036,-250.0,0.00021918,2]
[319509312,1710814239045,-150.0,0.00021918,2]
[319509313,1710814239055,-168.79,0.00021918,10]
[319509314,1710814239065,-1035.03631322,0.00022,2]
[319509315,1710814239075,-735.32981306,0.00022,2]
[319509316,1710814239086,-166.87,0.00022384,2]
[319509317,1710814239096,-3210.08,0.00022429,2]
[319509318,1710814239106,-151.64633502,0.00022716,2]
[319509319,1710814239116,-194.33,0.00022733,2]
[319509320,1710814239126,-1000.0,0.00023141,2]
[319509321,1710814239136,-20628.96022666,0.00023201,2]
[319509322,1710814239146,-3460.90557788,0.0002322,2]
[319509323,1710814239156,-2652.4149366,0.0002322,2]
[319509324,1710814239166,-205.0,0.00023794,2]
[319509325,1710814239179,-598.84,0.00023968,2]
[319509326,1710814239191,-223.73548136,0.00024,2]
[319509327,1710814239200,-1112.55773879,0.00024,120]
[319509328,1710814239210,-166.87,0.00024419,2]
[319509329,1710814239220,-194.33,0.000248,120]
[319509330,1710814239230,-5000.0,0.00024873,2]
[319509331,1710814239240,-5000.0,0.00024873,2]
[319509332,1710814239251,-5000.0,0.00024873,2]
[319509333,1710814239261,-5000.0,0.00024873,2]
[319509334,1710814239272,-5000.0,0.00024873,2]
[319509335,1710814239282,-219.83,0.0002499,2]
[319509336,1710814239292,-155.0,0.00025,2]
[319509337,1710814239302,-114376.55117722,0.00025,30]
[319509338,1710814239312,-1000.0,0.00025245,2]
[319509339,1710814239321,-152.41830901,0.00025298,2]
[319509340,1710814239331,-5347.73041203,0.00025476,2]
[319509341,1710814239340,-155.35397991,0.00025476,2]
[319509342,1710814239350,-2166.43570411,0.00025477,2]
[319509343,1710814239359,-775.90829325,0.00025477,2]
[319509344,1710814239369,-242.99624973,0.00025477,2]
[319509345,1710814239379,-277.68529922,0.00025478,2]
[319509346,1710814239388,-155.4405497,0.00025478,2]
[319509347,1710814239398,-29484.73403223,0.000255,7]
[319509348,1710814239408,-151.20983331,0.00025697,2]
[319509349,1710814239418,-721.0,0.000258,3]
[319509350,1710814239428,-2845.0,0.000259,3]
[319509351,1710814239442,-598.84,0.00026232,2]
[319509352,1710814239452,-20628.96022666,0.0002646,2]
[319509353,1710814239462,-426.98250792,0.00026476,2]
[319509354,1710814239472,-2504.43142703,0.00027111,10]
[319509355,1710814239482,-151.64633502,0.00027125,2]
[319509356,1710814239493,-1862.88760451,0.0002736,120]
[319509357,1710814239504,-500.0,0.00027397,7]
[319509358,1710814239514,-1000.0,0.00027945,2]
[319509359,1710814239523,-598.84,0.00028496,2]
[319509360,1710814239533,-200.0,0.00028649,2]
[319509361,1710814239542,-2579.354175,0.0002868,2]
[319509362,1710814239552,-2579.35417498,0.0002868,2]
[319509363,1710814239562,-2579.35417498,0.0002868,2]
[319509364,1710814239571,-411.31302606,0.0002878,2]
[319509365,1710814239580,-4975.75520908,0.0002878,2]
[319509366,1710814239590,-9099.38292273,0.0002878,2]
[319509367,1710814239600,-451.97314214,0.0002878,2]
[319509368,1710814239610,-800.0,0.000288,10]
[319509369,1710814239619,-161.42,0.0002885,15]
[319509370,1710814239629,-150.5,0.0002885,15]
[319509371,1710814239639,-150.5,0.0002886,15]
[319509372,1710814239898,-150.5,0.0002886,15]
[319509373,1710814239927,-219.83,0.00028867,2]
[319509374,1710814239941,-157.25,0.0002887,15]
[319509375,1710814239950,-150.5,0.0002887,15]
[319509376,1710814239960,-150.5,0.0002887,15]
[319509377,1710814239969,-219.83,0.0002887,2]
[319509378,1710814239980,-219.83,0.0002887,2]
[319509379,1710814239989,-219.83,0.0002887,2]
[319509380,1710814239998,-80026.0,0.00028877,4]
[319509381,1710814240008,-7661.0,0.00028877,4]
[319509382,1710814240017,-19468.0,0.00028877,4]
[319509383,1710814240026,-54655.56418347,0.0002888,2]
[319509384,1710814240202,-1973.163188,0.0002888,2]
[319509385,1710814240213,-1000.51593,0.0002888,2]
[319509386,1710814240224,-679.61945996,0.0002888,2]
[319509387,1710814240236,-32964.0,0.0002888,2]
[319509388,1710814240352,-1980.97,0.0001989,2]
[319509389,1710814240363,-535.51927252,0.0001989,2]
[319509390,1710814240372,-1451.31340188,0.0002888,2]
[319509391,1710814240396,-1029.27,0.0002888,2]
[319509392,1710814240407,-3416.25831108,0.0002888,2]
[319509393,1710814240429,-2516.48927252,0.0001989,2]
[319509394,1710814240442,-63483.51072748,0.0002888,2]
[319509395,1710814240456,-3680.0527673,0.0002888,2]
[319509396,1710814240950,-2516.48927252,0.0001989,2]
[319509397,1710814240959,-26.31508076,0.0001989,2]
[319509398,1710814240980,-1705.73799334,0.0001989,2]
[319509399,1710814240999,-334.24145581,0.0001989,2]
[319509400,1710814241011,-450.19474261,0.0001989,2]
[319509401,1710814241020,-212.42625194,0.0001989,2]
[319509402,1710814241031,-2304.06302058,0.0001989,2]
[319509403,1710814241041,-552.59193834,0.00020999,2]
[319509404,1710814241050,-416410.84008085,0.0002888,2]
[319509405,1710814241061,-1974.77509319,0.0002888,2]
[319509406,1710814241220,-331620.5187567,0.0002888,2]
[319509407,1710814241230,-151.586446,0.0002888,7]
[319509408,1710814241240,-151.013057,0.0002888,7]
[319509409,1710814241250,-151.0,0.0002888,7]
[319509410,1710814241263,-153.733927,0.0002888,7]
[319509411,1710814241272,-153.069507,0.0002888,7]
[319509412,1710814241282,-151.0,0.0002888,7]
[319509413,1710814241291,-151.0,0.0002888,7]
[319509414,1710814241300,-151.0,0.0002888,7]
[319509415,1710814241309,-151.0,0.0002888,7]
[319509416,1710814241318,-154.905762,0.0002888,7]
[319509417,1710814241327,-155.042437,0.0002888,7]
[319509418,1710814241337,-151.0,0.0002888,7]
[319509419,1710814241346,-151.0,0.0002888,7]
[319509420,1710814241355,-151.0,0.0002888,7]
[319509421,1710814241364,-151.0,0.0002888,7]
[319509422,1710814241373,-151.0,0.0002888,7]
[319509423,1710814241383,-152.045183,0.0002888,7]
[319509424,1710814241392,-625.74605049,0.0002889,2]
[319509425,1710814241402,-1000.0,0.000289,10]
[319509426,1710814241411,-439.45895503,0.000295,3]
[319509427,1710814241421,-20628.96022666,0.00029719,2]
[319509428,1710814241432,-7500.0,0.000299,2]
[319509429,1710814241442,-674.473967,0.000299,17]
[319509430,1710814241451,-2268.22756816,0.000299,2]
[319509431,1710814241461,-2630.20140855,0.0002999,2]
[319509432,1710814241470,-213.40897368,0.0003,14]
[319509433,1710814241480,-1595.09482793,0.0003,4]
[319509434,1710814241490,-155.0,0.0003,5]
[319509435,1710814241500,-1098.6591993,0.0003,4]
[319509436,1710814241510,-23616.24783885,0.0003,4]
[319509437,1710814241520,-7503.39239495,0.0003,4]
[319509438,1710814241530,-1924.99830401,0.0003,2]
[319509439,1710814241539,-19222.05911731,0.0003,4]
[319509440,1710814241549,-2205.77378913,0.0003,3]
[319509441,1710814241558,-7302.53810359,0.0003,7]
[319509442,1710814241567,-727.45983043,0.0003,25]
[319509443,1710814241577,-300.0,0.0003,7]
[319509444,1710814241586,-200.0,0.0003,7]
[319509445,1710814241596,-200.0,0.0003,7]
[319509446,1710814241606,-1022157.0,0.0003,2]
[319509447,1710814241615,-14685.0,0.0003,5]
[319509448,1710814241625,-500.0,0.0003,2]
[319509449,1710814241635,-150.15,0.0003,2]
[319509450,1710814241644,-150.15,0.0003,2]
[319509451,1710814241654,-150.15,0.0003,2]
[319509452,1710814241663,-150.15,0.0003,2]
[319509453,1710814241673,-150.15,0.0003,2]
[319509454,1710814241684,-150.15,0.0003,2]
[319509455,1710814241694,-150.15,0.0003,2]
[319509456,1710814241703,-150.15,0.0003,2]
[319509457,1710814241713,-150.15,0.0003,2]
[319509458,1710814241723,-150.15,0.0003,2]
[319509459,1710814241733,-150.15,0.0003,2]
[319509460,1710814241742,-150.15,0.0003,2]
[319509461,1710814241751,-150.15,0.0003,2]
[319509462,1710814241761,-150.15,0.0003,2]
[319509463,1710814241771,-150.15,0.0003,2]
[319509464,1710814241780,-150.15,0.0003,2]
[319509465,1710814241793,-150.15,0.0003,2]
[319509466,1710814241803,-150.15,0.0003,2]
[319509467,1710814241813,-150.15,0.0003,2]
[319509468,1710814241826,-150.15,0.0003,2]
[319509469,1710814241838,-150.15,0.0003,2]
[319509470,1710814241847,-150.15,0.0003,2]
[319509471,1710814241857,-150.15,0.0003,2]
[319509472,1710814241866,-150.15,0.0003,2]
[319509473,1710814241876,-150.15,0.0003,2]
[319509474,1710814241886,-150.15,0.0003,2]
[319509475,1710814241896,-150.15,0.0003,2]
[319509476,1710814241906,-150.15,0.0003,2]
[319509477,1710814241916,-150.15,0.0003,2]
[319509478,1710814241925,-150.15,0.0003,2]
[319509479,1710814241937,-150.15,0.0003,2]
[319509480,1710814241947,-150.15,0.0003,2]
[319509481,1710814241958,-150.15,0.0003,2]
[319509482,1710814241967,-150.15,0.0003,2]
[319509483,1710814241977,-150.15,0.0003,2]
[319509484,1710814241987,-150.15,0.0003,2]
[319509485,1710814241998,-150.15,0.0003,2]
[319509486,1710814242007,-150.15,0.0003,2]
[319509487,1710814242018,-150.15,0.0003,2]
[319509488,1710814242027,-150.15,0.0003,2]
[319509489,1710814242038,-150.15,0.0003,2]
[319509490,1710814242047,-150.15,0.0003,2]
[319509491,1710814242057,-150.15,0.0003,2]
[319509492,1710814242068,-150.15,0.0003,2]
[319509493,1710814242077,-150.15,0.0003,2]
[319509494,1710814242088,-150.15,0.0003,2]
[319509495,1710814242097,-150.15,0.0003,2]
[319509496,1710814242106,-150.15,0.0003,2]
[319509497,1710814242116,-150.15,0.0003,2]
[319509498,1710814242125,-150.15,0.0003,2]
[319509499,1710814242135,-150.15,0.0003,2]
[319509500,1710814242144,-150.15,0.0003,2]
[319509501,1710814242154,-150.15,0.0003,2]
[319509502,1710814242164,-500.0,0.00030137,7]
[319509503,1710814242173,-2579.35417498,0.00030666,2]
[319509504,1710814242184,-598.84,0.00030759,2]
[319509505,1710814242194,-1300.0,0.000309,11]
[319509506,1710814242203,-6704.0,0.00031,5]
[319509507,1710814242212,-152.422,0.00031049,7]
[319509508,1710814242221,-762.0,0.00031102,2]
[319509509,1710814242231,-3245.0,0.00031102,2]
[319509510,1710814242240,-701.0,0.00031102,2]
[319509511,1710814242249,-41324.548,0.0003127,2]
[319509512,1710814242259,-5670.0,0.0003127,2]
[319509513,1710814242268,-1044.0,0.0003127,2]
[319509514,1710814242277,-762.0,0.00031423,2]
[319509515,1710814242287,-3245.0,0.00031423,2]
[319509516,1710814242297,-701.0,0.00031423,2]
[319509517,1710814242307,-151.64633502,0.00031533,2]
[319509518,1710814242316,-762.0,0.00031743,2]
[319509519,1710814242326,-3245.0,0.00031743,2]
[319509520,1710814242335,-701.0,0.00031743,2]
[319509521,1710814242344,-152.46217562,0.000318,20]
[319509522,1710814242353,-160.0,0.00031815,3]
[319509523,1710814242366,-507.072,0.00031815,2]
[319509524,1710814242376,-762.0,0.00032064,2]
[319509525,1710814242385,-537.35834142,0.00032064,2]
[319509526,1710814242394,-3245.0,0.00032064,2]
[319509527,1710814242404,-701.0,0.00032064,2]
[319509528,1710814242413,-1767.35487567,0.00032064,2]
[319509529,1710814242423,-168.79,0.00032192,10]
[319509530,1710814242435,-344.75054923,0.000322,35]
[319509531,1710814242444,-2473.09,0.00032329,2]
[319509532,1710814242453,-637.77,0.00032329,2]
[319509533,1710814242463,-426.98250792,0.00032332,2]
[319509534,1710814242472,-762.0,0.00032385,2]
[319509535,1710814242482,-3245.0,0.00032385,2]
[319509536,1710814242491,-701.0,0.00032385,2]
[319509537,1710814242501,-1028.77974667,0.00032428,14]
[319509538,1710814242511,-762.0,0.00032705,2]
[319509539,1710814242520,-3245.0,0.00032705,2]
[319509540,1710814242529,-701.0,0.00032705,2]
[319509541,1710814242539,-38320.85271795,0.000328,2]
[319509542,1710814242549,-396.17728797,0.00032875,5]
[319509543,1710814242559,-1000.0,0.00032876,2]
[319509544,1710814242569,-1000.0,0.00032876,2]
[319509545,1710814242579,-1000.0,0.00032876,2]
[319509546,1710814242589,-1000.0,0.00032876,2]
[319509547,1710814242599,-1000.0,0.00032876,2]
[319509548,1710814242608,-1000.0,0.00032876,2]
[319509549,1710814242618,-1000.0,0.00032876,2]
[319509550,1710814242627,-1000.0,0.00032876,2]
[319509551,1710814242637,-162.30620262,0.00032876,2]
[319509552,1710814242647,-527.12235036,0.00032877,7]
[319509553,1710814242657,-20628.96022666,0.00032978,5]
[319509554,1710814242667,-244.8356096,0.00033,33]
[319509555,1710814242677,-3000.0,0.00033,5]
[319509556,1710814242689,-598.84,0.00033023,2]
[319509557,1710814242699,-762.0,0.00033026,2]
[319509558,1710814242709,-3245.0,0.00033026,2]
[319509559,1710814242718,-701.0,0.00033026,2]
[319509560,1710814242728,-500.0,0.00033478,4]
[319509561,1710814242738,-500.0,0.00033478,4]
[319509562,1710814242747,-500.0,0.00033478,4]
[319509563,1710814242757,-500.0,0.00033478,4]
[319509564,1710814242767,-500.0,0.00033478,4]
[319509565,1710814242777,-500.0,0.00033478,4]
[319509567,1710814242787,-500.0,0.00033478,4]
[319509569,1710814242797,-500.0,0.00033478,4]
[319509570,1710814242810,-500.0,0.00033478,4]
[319509572,1710814242820,-616.0,0.00033478,4]
[319509574,1710814242830,-45736.56178745,0.000335,30]
[319509576,1710814242839,-800.0,0.00033643,10]
[319509578,1710814242849,-200.0,0.00033643,10]
[319509581,1710814242858,-5668.0,0.0003427,2]
[319509583,1710814242868,-2579.35417498,0.00034688,2]
[319509585,1710814242878,-2887.6318923,0.000348,2]
[319509587,1710814242888,-5000.0,0.00034873,2]
[319509589,1710814242903,-5000.0,0.00034873,2]
[319509592,1710814242912,-5000.0,0.00034873,2]
[319509594,1710814242922,-5000.0,0.00034873,2]
[319509597,1710814242934,-5000.0,0.00034873,2]
[319509599,1710814242943,-200.0,0.00035,35]
[319509601,1710814242953,-2631.0,0.00035,7]
[319509603,1710814242963,-995.8,0.00035,2]
[319509605,1710814242973,-674.47396698,0.00035,24]
[319509607,1710814242983,-1160.0,0.00035142,5]
[319509609,1710814242992,-598.84,0.00035287,2]
[319509611,1710814243002,-151.64633502,0.00035941,2]
[319509613,1710814243012,-425.11565648,0.00036,14]
[319509616,1710814243022,-20628.96022666,0.00036237,9]
[319509619,1710814243032,-5016.78269664,0.00036402,2]
[319509622,1710814243042,-300.0,0.00037,37]
[319509624,1710814243051,-168.32211849,0.00037439,7]
[319509626,1710814243061,-598.84,0.00037551,2]
[319509628,1710814243071,-151.031911,0.00037798,22]
[319509630,1710814243081,-632.0,0.00038186,28]
[319509632,1710814243090,-426.98250792,0.00038188,2]
[319509634,1710814243100,-151.031911,0.00038198,22]
[319509636,1710814243110,-151.031911,0.00038498,27]
[319509638,1710814243120,-200.0,0.00038637,15]
[319509640,1710814243130,-800.0,0.00038637,15]
[319509642,1710814243139,-200.0,0.00038637,20]
[319509644,1710814243149,-500.0,0.00038637,20]
[319509646,1710814243158,-200.0,0.00038637,20]
[319509648,1710814243168,-2579.35417498,0.00038711,2]
[319509650,1710814243178,-151.031911,0.00038798,28]
[319509652,1710814243189,-5777.46323199,0.000389,15]
[319509654,1710814243199,-6781.89984744,0.0003897,2]
[319509656,1710814243209,-632.0,0.00038999,28]
[319509658,1710814243218,-679.45794,0.00039,20]
[319509660,1710814243228,-300.0,0.00039,39]
[319509662,1710814243238,-500.0,0.00039087,14]
[319509664,1710814243247,-500.0,0.00039087,14]
[319509666,1710814243257,-500.0,0.00039087,14]
[319509668,1710814243266,-764.0,0.00039087,14]
[319509670,1710814243276,-1000.0,0.00039087,30]
[319509671,1710814243285,-151.031911,0.00039198,27]
[319509672,1710814243295,-1059.76696702,0.000392,5]
[319509673,1710814243304,-619.0,0.00039495,14]
[319509674,1710814243314,-500.0,0.00039495,14]
[319509675,1710814243571,-500.0,0.00039495,14]
[319509676,1710814243581,-500.0,0.00039495,14]
[319509677,1710814243590,-500.0,0.00039495,14]
[319509678,1710814243599,-500.0,0.00039495,14]
[319509679,1710814243608,-500.0,0.00039495,14]
[319509681,1710814243618,-500.0,0.00039495,14]
[319509683,1710814243627,-500.0,0.00039495,14]
[319509684,1710814243636,-500.0,0.00039495,14]
[319509685,1710814243645,-500.0,0.00039495,14]
[319509686,1710814243654,-500.0,0.00039495,14]
[319509687,1710814243663,-500.0,0.00039495,14]
[319509688,1710814243672,-500.0,0.00039495,14]
[319509690,1710814243683,-500.0,0.00039495,14]
[319509691,1710814243692,-500.0,0.00039495,14]
[319509692,1710814243701,-500.0,0.00039495,14]
[319509693,1710814243711,-500.0,0.00039495,14]
[319509694,1710814243720,-500.0,0.00039495,14]
[319509695,1710814243729,-500.0,0.00039495,14]
[319509696,1710814243739,-500.0,0.00039495,14]
[319509697,1710814243748,-500.0,0.00039495,14]
[319509698,1710814243757,-500.0,0.00039495,14]
[319509699,1710814243767,-500.0,0.00039495,14]
[319509700,1710814243776,-500.0,0.00039495,14]
[319509701,1710814243785,-500.0,0.00039495,14]
[319509702,1710814243794,-500.0,0.00039495,14]
[319509703,1710814243806,-500.0,0.00039495,14]
[319509704,1710814243816,-500.0,0.00039495,14]
[319509705,1710814243827,-500.0,0.00039495,14]
[319509706,1710814243837,-500.0,0.00039495,14]
[319509707,1710814243846,-500.0,0.00039495,14]
[319509708,1710814243855,-500.0,0.00039495,14]
[319509709,1710814243865,-500.0,0.00039495,14]
[319509710,1710814243874,-500.0,0.00039495,14]
[319509711,1710814243884,-500.0,0.00039495,14]
[319509712,1710814243894,-500.0,0.00039495,14]
[319509713,1710814243903,-500.0,0.00039495,14]
[319509714,1710814243913,-904.0,0.00039495,14]
[319509715,1710814243922,-856.0,0.00039495,14]
[319509716,1710814243932,-20628.96022666,0.00039495,13]
[319509717,1710814243941,-151.031911,0.00039498,28]
[319509718,1710814243950,-11788.33884129,0.000396,2]
[319509719,1710814243959,-36471.548256,0.0003978,7]
[319509720,1710814243969,-57703.0803647,0.0003978,7]
[319509721,1710814243980,-151.031911,0.00039798,27]
[319509722,1710814243989,-632.0,0.00039811,28]
[319509723,1710814244000,-598.84,0.00039815,2]
[319509724,1710814244010,-770.6051397,0.00039842,2]
[319509725,1710814244019,-631.63205606,0.000399,30]
[319509726,1710814244029,-155.58560255,0.00039996,4]
[319509727,1710814244038,-5606.89992462,0.00039997,4]
[319509728,1710814244047,-785.16663039,0.00039997,4]
[319509729,1710814244057,-201.02093382,0.00039998,4]
[319509730,1710814244067,-156.07088607,0.00039998,4]
[319509731,1710814244077,-547.78269784,0.00039998,4]
[319509732,1710814244087,-22122.79668588,0.00039998,2]
[319509733,1710814244097,-155.17560163,0.00039999,4]
[319509734,1710814244107,-155.79850142,0.00039999,4]
[319509735,1710814244117,-201.28376912,0.00039999,4]
[319509736,1710814244127,-156.37827224,0.00039999,4]
[319509737,1710814244136,-206.4883405,0.00039999,4]
[319509738,1710814244146,-240.89251014,0.00039999,30]
[319509739,1710814244155,-921.27340304,0.0004,20]
[319509740,1710814244164,-2363.72809597,0.0004,120]
[319509741,1710814244173,-1657.26072468,0.0004,4]
[319509742,1710814244188,-300.0,0.0004,120]
[319509743,1710814244198,-400.42,0.0004,120]
[319509744,1710814244208,-4173.9437199,0.0004,4]
[319509745,1710814244218,-500000.0,0.0004,4]
[319509746,1710814244227,-6473.21804981,0.0004,4]
[319509747,1710814244236,-214.66566469,0.0004,4]
[319509748,1710814244245,-254.87096548,0.0004,30]
[319509749,1710814244254,-2000.0,0.0004,7]
[319509750,1710814244264,-200.0,0.0004,7]
[319509751,1710814244273,-151.0,0.0004,14]
[319509752,1710814244283,-111062.87,0.0004,20]
[319509753,1710814244292,-200.0,0.0004,7]
[319509754,1710814244302,-153.486897,0.0004,14]
[319509755,1710814244311,-163.122467,0.0004,14]
[319509756,1710814244321,-151.0,0.0004,14]
[319509757,1710814244331,-151.0,0.0004,14]
[319509758,1710814244340,-151.0,0.0004,14]
[319509759,1710814244349,-151.0,0.0004,14]
[319509760,1710814244359,-151.0,0.0004,14]
[319509761,1710814244368,-162119.0,0.0004,10]
[319509762,1710814244377,-5000.0,0.0004,120]
[319509763,1710814244387,-151.0,0.0004,14]
[319509764,1710814244396,-151.0,0.0004,14]
[319509765,1710814244405,-151.0,0.0004,14]
[319509766,1710814244414,-151.660513,0.0004,14]
[319509767,1710814244424,-340.513974,0.0004,14]
[319509768,1710814244437,-151.0,0.0004,14]
[319509769,1710814244446,-340.513974,0.0004,14]
[319509770,1710814244456,-151.0,0.0004,14]
[319509771,1710814244465,-152.33057,0.0004,14]
[319509772,1710814244475,-151.0,0.0004,14]
[319509773,1710814244484,-151.679226,0.0004,14]
[319509774,1710814244493,-287.832726,0.0004,14]
[319509775,1710814244503,-151.0,0.0004,14]
[319509776,1710814244513,-151.0,0.0004,14]
[319509777,1710814244522,-151.0,0.0004,14]
[319509778,1710814244531,-151.665106,0.0004,14]
[319509779,1710814244541,-151.0,0.0004,7]
[319509780,1710814244550,-165.882854,0.0004,14]
[319509781,1710814244559,-151.0,0.0004,14]
[319509782,1710814244568,-151.0,0.0004,14]
[319509783,1710814244578,-154.433927,0.0004,14]
[319509784,1710814244587,-156.151874,0.0004,14]
[319509785,1710814244595,-151.697336,0.0004,14]
[319509786,1710814244604,-1833.576335,0.0004,14]
[319509787,1710814244613,-1833.576335,0.0004,14]
[319509788,1710814244622,-151.158492,0.0004,14]
[319509789,1710814244632,-151.0,0.0004,14]
[319509790,1710814244640,-151.0,0.0004,14]
[319509791,1710814244650,-153.789445,0.0004,14]
[319509792,1710814244659,-151.879182,0.0004,14]
[319509793,1710814244668,-151.0,0.0004,14]
[319509794,1710814244677,-152.384439,0.0004,14]
[319509795,1710814244690,-151.0,0.0004,14]
[319509796,1710814244699,-151.0,0.0004,14]